Workbook

Sheet Lista della spesa
M1: =calcoli!M9 -> LATTICINI TOTALE
B2: Lista della spesa
C3: Fatto | D3: ELEMENTO | E3: NEGOZIO | F3: CATEGORIA | G3: Q.TÀ | H3: UNITÀ | I3: PREZZO UNITARIO | J3: TOTALE | K3: COMMENTO | M3: =calcoli!L9 -> 37
C4: 1 | D4: Arance | E4: Generi alimentari | F4: Ortofrutta | G4: 2 | H4: kg | I4: € 2.99 | J4: =IFERROR(Elenco[Q.TÀ]*Elenco[PREZZO UNITARIO],"") -> € 5.98 | M4: =calcoli!M8 -> ORTOFRUTTA TOTALE
D5: Mele | E5: Frutteto | F5: Ortofrutta | G5: 3 | H5: kg | I5: € 1.99 | J5: =IFERROR(Elenco[Q.TÀ]*Elenco[PREZZO UNITARIO],"") -> € 5.97 | K5: Ho un buono sconto | M5: =calcoli!L8 -> 45
D6: Banane | E6: Generi alimentari | F6: Ortofrutta | G6: 1 | H6: mazzo | I6: € 3.99 | J6: =IFERROR(Elenco[Q.TÀ]*Elenco[PREZZO UNITARIO],"") -> € 3.99
D7: Lattuga | E7: Mercato | F7: Ortofrutta | G7: 2 | H7: cespo | I7: € 2.29 | J7: =IFERROR(Elenco[Q.TÀ]*Elenco[PREZZO UNITARIO],"") -> € 4.58 | M7: =calcoli!M7 -> CARNE TOTALE
D8: Pomodori | E8: Mercato | F8: Ortofrutta | G8: 4 | H8: kg | I8: € 3.49 | J8: =IFERROR(Elenco[Q.TÀ]*Elenco[PREZZO UNITARIO],"") -> € 13.96 | M8: =calcoli!L7 -> 80
D9: Zucca | E9: Mercato | F9: Ortofrutta | G9: 2 | H9: cadauno | I9: € 1.50 | J9: =IFERROR(Elenco[Q.TÀ]*Elenco[PREZZO UNITARIO],"") -> € 3.00
D10: Sedano | E10: Generi alimentari | F10: Ortofrutta | G10: 2 | H10: mazzo | I10: € 1.99 | J10: =IFERROR(Elenco[Q.TÀ]*Elenco[PREZZO UNITARIO],"") -> € 3.98 | M10: =calcoli!M6 -> PESCE TOTALE
D11: Cetrioli | E11: Mercato | F11: Ortofrutta | G11: 1 | H11: kg | I11: € 2.29 | J11: =IFERROR(Elenco[Q.TÀ]*Elenco[PREZZO UNITARIO],"") -> € 2.29 | M11: =calcoli!L6 -> 109
D12: Funghi | E12: Generi alimentari | F12: Ortofrutta | G12: 0.5 | H12: kg | I12: € 2.25 | J12: =IFERROR(Elenco[Q.TÀ]*Elenco[PREZZO UNITARIO],"") -> € 1.13 | K12: Portabella di grandi dimensioni
D13: Latte | E13: Consegna a domicilio | F13: Latticini | G13: 2 | H13: litro | I13: € 3.99 | J13: =IFERROR(Elenco[Q.TÀ]*Elenco[PREZZO UNITARIO],"") -> € 7.98 | M13: =calcoli!M3 -> TOTALE ALTRO
D14: Formaggio | E14: Consegna a domicilio | F14: Latticini | G14: 1 | H14: kg | I14: € 9.99 | J14: =IFERROR(Elenco[Q.TÀ]*Elenco[PREZZO UNITARIO],"") -> € 9.99 | K14: Selezione di formaggi stagionati | M14: =calcoli!L3 -> 0
D15: Uova | E15: Consegna a domicilio | F15: Latticini | G15: 2 | H15: dozzina | I15: € 3.50 | J15: =IFERROR(Elenco[Q.TÀ]*Elenco[PREZZO UNITARIO],"") -> € 7.00
D16: Formaggio in fiocchi | E16: Consegna a domicilio | F16: Latticini | G16: 1 | H16: 400 g | I16: € 3.89 | J16: =IFERROR(Elenco[Q.TÀ]*Elenco[PREZZO UNITARIO],"") -> € 3.89 | M16: =calcoli!M4 -> TOTALE GENERI ALIMENTARI
D17: Crema acida | E17: Consegna a domicilio | F17: Latticini | G17: 1 | H17: 200 g | I17: € 2.99 | J17: =IFERROR(Elenco[Q.TÀ]*Elenco[PREZZO UNITARIO],"") -> € 2.99 | M17: =TotaleGeneriAlimentari -> 271
D18: Yogurt | E18: Generi alimentari | F18: Latticini | G18: 1 | H18: 400 g | I18: € 4.99 | J18: =IFERROR(Elenco[Q.TÀ]*Elenco[PREZZO UNITARIO],"") -> € 4.99 | K18: Greco con miele
D19: Manzo | E19: Mercato | F19: Carne | G19: 10 | H19: kg | I19: € 7.99 | J19: =IFERROR(Elenco[Q.TÀ]*Elenco[PREZZO UNITARIO],"") -> € 79.90 | K19: Filetti avvolti nel bacon
D20: Salmone | E20: Mercato del pesce | F20: Pesce | G20: 6 | H20: kg | I20: € 8.99 | J20: =IFERROR(Elenco[Q.TÀ]*Elenco[PREZZO UNITARIO],"") -> € 53.94
D21: Zampe di granchio reale dell'Alaska | E21: Mercato del pesce | F21: Pesce | G21: 5 | H21: kg | I21: € 10.99 | J21: =IFERROR(Elenco[Q.TÀ]*Elenco[PREZZO UNITARIO],"") -> € 54.95

Sheet calcoli (hidden)
A1: ***Il foglio deve rimanere nascosto***
K3: =SUM(Elenco[TOTALE])-SUM(K6:K9) -> € 0.00 | L3: =ROUND(K3,0) -> € 0 | M3: TOTALE ALTRO
L4: =ROUNDUP(SUM(Elenco[TOTALE]),0) -> € 271 | M4: TOTALE GENERI ALIMENTARI
E6: =IFERROR(INDEX(Elenco[CATEGORIA],MATCH(,COUNTIF($E$5:E5,Elenco[CATEGORIA]),)),"") -> Ortofrutta | F6: =SUMIFS(Elenco[TOTALE],Elenco[CATEGORIA],E6) -> 44.875 | G6: =F6+ROW()/1000000 -> 44.875006 | H6: =LARGE($G$6:$G$21,1) -> 108.890009 | I6: =MATCH(H6,$G$6:$G$21,0) -> 4 | J6: =INDEX($E$6:$E$21,$I6) -> Pesce | K6: =INDEX($F$6:$F$21,$I6) -> € 108.89 | L6: =ROUND(K6,0) -> € 109 | M6: =UPPER(J6) & " TOTALE" -> PESCE TOTALE
E7: =IFERROR(INDEX(Elenco[CATEGORIA],MATCH(,COUNTIF($E$5:E6,Elenco[CATEGORIA]),)),"") -> Latticini | F7: =SUMIFS(Elenco[TOTALE],Elenco[CATEGORIA],E7) -> 36.84 | G7: =F7+ROW()/1000000 -> 36.840007 | H7: =LARGE($G$6:$G$21,2) -> 79.900008 | I7: =MATCH(H7,$G$6:$G$21,0) -> 3 | J7: =INDEX($E$6:$E$21,$I7) -> Carne | K7: =INDEX($F$6:$F$21,$I7) -> € 79.90 | L7: =ROUND(K7,0) -> € 80 | M7: =UPPER(J7) & " TOTALE" -> CARNE TOTALE
E8: =IFERROR(INDEX(Elenco[CATEGORIA],MATCH(,COUNTIF($E$5:E7,Elenco[CATEGORIA]),)),"") -> Carne | F8: =SUMIFS(Elenco[TOTALE],Elenco[CATEGORIA],E8) -> 79.9 | G8: 79.900008 | H8: =LARGE($G$6:$G$21,3) -> 44.875006 | I8: =MATCH(H8,$G$6:$G$21,0) -> 1 | J8: =INDEX($E$6:$E$21,$I8) -> Ortofrutta | K8: =INDEX($F$6:$F$21,$I8) -> € 44.88 | L8: =ROUND(K8,0) -> € 45 | M8: =UPPER(J8) & " TOTALE" -> ORTOFRUTTA TOTALE
E9: =IFERROR(INDEX(Elenco[CATEGORIA],MATCH(,COUNTIF($E$5:E8,Elenco[CATEGORIA]),)),"") -> Pesce | F9: =SUMIFS(Elenco[TOTALE],Elenco[CATEGORIA],E9) -> 108.89 | G9: 108.890009 | H9: =LARGE($G$6:$G$21,4) -> 36.840007 | I9: =MATCH(H9,$G$6:$G$21,0) -> 2 | J9: =INDEX($E$6:$E$21,$I9) -> Latticini | K9: =INDEX($F$6:$F$21,$I9) -> € 36.84 | L9: =ROUND(K9,0) -> € 37 | M9: =UPPER(J9) & " TOTALE" -> LATTICINI TOTALE
E10: =IFERROR(INDEX(Elenco[CATEGORIA],MATCH(,COUNTIF($E$5:E9,Elenco[CATEGORIA]),)),"") ->  | F10: =SUMIFS(Elenco[TOTALE],Elenco[CATEGORIA],E10) -> 0 | G10: 1e-05
E11: =IFERROR(INDEX(Elenco[CATEGORIA],MATCH(,COUNTIF($E$5:E10,Elenco[CATEGORIA]),)),"") ->  | F11: =SUMIFS(Elenco[TOTALE],Elenco[CATEGORIA],E11) -> 0 | G11: 1.1e-05
E12: =IFERROR(INDEX(Elenco[CATEGORIA],MATCH(,COUNTIF($E$5:E11,Elenco[CATEGORIA]),)),"") ->  | F12: =SUMIFS(Elenco[TOTALE],Elenco[CATEGORIA],E12) -> 0 | G12: 1.2e-05
E13: =IFERROR(INDEX(Elenco[CATEGORIA],MATCH(,COUNTIF($E$5:E12,Elenco[CATEGORIA]),)),"") ->  | F13: =SUMIFS(Elenco[TOTALE],Elenco[CATEGORIA],E13) -> 0 | G13: 1.3e-05
E14: =IFERROR(INDEX(Elenco[CATEGORIA],MATCH(,COUNTIF($E$5:E13,Elenco[CATEGORIA]),)),"") ->  | F14: =SUMIFS(Elenco[TOTALE],Elenco[CATEGORIA],E14) -> 0 | G14: 1.4e-05
E15: =IFERROR(INDEX(Elenco[CATEGORIA],MATCH(,COUNTIF($E$5:E14,Elenco[CATEGORIA]),)),"") ->  | F15: =SUMIFS(Elenco[TOTALE],Elenco[CATEGORIA],E15) -> 0 | G15: 1.5e-05
E16: =IFERROR(INDEX(Elenco[CATEGORIA],MATCH(,COUNTIF($E$5:E15,Elenco[CATEGORIA]),)),"") ->  | F16: =SUMIFS(Elenco[TOTALE],Elenco[CATEGORIA],E16) -> 0 | G16: 1.6e-05
E17: =IFERROR(INDEX(Elenco[CATEGORIA],MATCH(,COUNTIF($E$5:E16,Elenco[CATEGORIA]),)),"") ->  | F17: =SUMIFS(Elenco[TOTALE],Elenco[CATEGORIA],E17) -> 0 | G17: 1.7e-05
E18: =IFERROR(INDEX(Elenco[CATEGORIA],MATCH(,COUNTIF($E$5:E17,Elenco[CATEGORIA]),)),"") ->  | F18: =SUMIFS(Elenco[TOTALE],Elenco[CATEGORIA],E18) -> 0 | G18: 1.8e-05
E19: =IFERROR(INDEX(Elenco[CATEGORIA],MATCH(,COUNTIF($E$5:E18,Elenco[CATEGORIA]),)),"") ->  | F19: =SUMIFS(Elenco[TOTALE],Elenco[CATEGORIA],E19) -> 0 | G19: 1.9e-05
E20: =IFERROR(INDEX(Elenco[CATEGORIA],MATCH(,COUNTIF($E$5:E19,Elenco[CATEGORIA]),)),"") ->  | F20: =SUMIFS(Elenco[TOTALE],Elenco[CATEGORIA],E20) -> 0 | G20: 2e-05
E21: =IFERROR(INDEX(Elenco[CATEGORIA],MATCH(,COUNTIF($E$5:E20,Elenco[CATEGORIA]),)),"") ->  | F21: =SUMIFS(Elenco[TOTALE],Elenco[CATEGORIA],E21) -> 0 | G21: 2.1e-05
